{"text_format":"1","workbook":"xlsx","n_sheets":1,"sheets":["Price Bid Sheet- WC"],"not_rendered":{"charts":0,"images":0,"macros":1,"external_links":0,"defined_names":0,"comments":0,"pivot_tables":0},"unopened":[],"bounds":{"document_bytes":16777216,"sheet_cells":100000,"rows_first":2000,"rows_last":500,"rows_between":2000,"halvings":0,"cell_chars":16384,"cell_head_chars":4096},"cells_cut":0,"cells_raw":0,"read":"whole","date_system":"1900"}

{"sheet":"Price Bid Sheet- WC","index":0,"n_rows":32,"n_cols":9,"rows_kept":32,"cut":false,"hidden":false,"merged":[[0,0,0,7],[15,3,15,7],[18,1,18,7],[19,1,19,7],[24,1,24,7],[20,1,20,7],[21,1,21,7],[23,1,23,7],[22,1,22,7]]}
["Price Bid Sheet (Annexure ‘S-A’)"]
["Sl. No.","Distance\nSlab","Weight Class","% Allocation (Item-wise)","Unit of Measurement","Quantum of Work","Rate per Unit (in Rs.)","Amount (in Rs. Lakhs)"]
[" (A)",null,"( B)","( C)","(D)","(E)","(F)","(G=E*F)"]
[]
[1,"Up to 800 km","(M1)- Above 41 MT & up to 54 MT",3.66964979E-2,"MT- Km",400000,{"$f":" ROUNDDOWN( H5/F5,4)","v":0},{"$f":"+($H$15*D5)","v":0}]
[2,"Up to 800 km","(M2)- Above 54 MT & up to 81 MT",1.8048574500000001E-2,"MT- Km",200000,{"$f":" ROUNDDOWN( H6/F6,4)","v":0},{"$f":"+($H$15*D6)","v":0}]
[3,"Up to 800 km","(M3)- Above 81 MT & up to 108 MT",1.7040578640000002E-2,"MT- Km",200000,{"$f":" ROUNDDOWN( H7/F7,4)","v":0},0]
[4,"Up to 800 km","(M4)- Above 108 MT & up to 135 MT",0.1377548935,"MT- Km",1600000,{"$f":" ROUNDDOWN( H8/F8,4)","v":0},0]
[5,"Up to 800 km","(M5)- Above 135 MT & up to 200 MT",1.566480051E-2,"MT- Km",200000,0,0]
[6,"Above 800 km","(M1)- Above 41 MT & up to 54 MT",0.1585686459,"MT- Km",1800000,0,0]
[7,"Above 800 km","(M2)- Above 54 MT & up to 81 MT",0.18720117689999999,"MT- Km",2200000,0,0]
[8,"Above 800 km","(M3)- Above 81 MT & up to 108 MT",5.1557626029999998E-2,"MT- Km",600000,0,0]
[9,"Above 800 km","(M4)- Above 108 MT & up to 135 MT",0.15717924620000001,"MT- Km",2000000,0,0]
[10,"Above 800 km","(M5)- Above 135 MT & up to 200 MT",0.2202879599,"MT- Km",3000000,{"$f":" ROUNDDOWN( H14/F14,4)","v":0},{"$f":"+($H$15*D14)","v":0}]
[null,null,"GRAND TOTAL ",{"$f":"SUM(D5:D14)","v":0.99999999998},null,{"$f":"SUM(F5:F14)","v":12200000},null,0,"To be quoted by bidder"]
[null,null,"Total price in words:",{"$f":"+RUP(H15)","v":0}]
[]
["Note:"]
[1,"Bidder has to quote in above unlocked cell only. Item rate shall be calculated automatically. Calculated item rates upto two decimal points may be adjusted w.r.t. gross total amount and it shall be the itemwise final rate for execution of contract and all other purposes."]
[2,"Quoted gross total amount should be considered only if quoted in this excel sheet and print out of this should only be considered for evaluation. If Price is quoted in any other format other than the Excel Sheet enclosed to the NIT, the offer of the bidder will be rejected."]
[3,"L1, L2, L3 etc. shall be decided on the basis of Grand Total (up to two decimal places)."]
[4,"The rates should be firm for a period of one (1) year except for adjustment in freight rate due to increase/decrease in retail selling price (RSP) of Diesel in Lucknow. Refer relevant clause on Freight Escalation (PVC). "]
[5,"The  bidders  shall  quote their  rates inclusive  of all extra  charges  like surcharges,  hammali charges, statistical charges, goods tax, market fluctuations  etc., so that the rate quoted shall be a consolidated one, taking the above elements into consideration. No claim will be entertained afterwards."]
[6,"Offer shall be valid for 6 months from the tender opening date."]
[7,"GST shall be extra as applicable. In line with clause no. G31, Bidder have to confirm the opted option i.e. Reverse charge OR forward charge method (Please tick on appropriate answer)."]
[]
[]
[]
[]
[]
[]
[null,null,null,null,null,"( Signature and Seal of Bidder)"]